bitfinex-derivatives/quotes_ETHF0:USTF0_20250923
["timestamp","ask_amount","ask_price","bid_price","bid_amount"]
[1758599729222,0.8672,4189.0,4188.9,46.99215492]
[1758599729610,0.2378,4189.5,4189.4,0.42925]
[1758599729611,0.8597,4189.5,4189.4,0.42925]
[1758599729809,0.8597,4189.5,4189.4,5.21032571]
[1758599730123,0.8597,4189.5,4189.4,9.21032571]
[1758599730524,0.8597,4189.5,4189.4,50.01032571]
[1758599731827,0.8307,4190.0,4189.9,0.4292]
[1758599732021,0.8307,4190.0,4189.9,5.21027571]
[1758599732726,1.6464,4190.0,4189.9,44.2518]
[1758599735224,1.6464,4190.0,4189.9,44.2508]
[1758599736927,1.6464,4190.0,4189.9,3.4508]
[1758599739239,1.88328372,4190.0,4189.9,3.4508]
[1758599740034,7.21255943,4190.0,4189.9,0.243]
[1758599740240,0.2449,4189.0,4188.7,3.2078]
[1758599740432,1.0138,4188.8,4188.7,3.2078]
[1758599740631,1.25068372,4188.8,4188.7,3.4508]
[1758599740932,1.25068372,4188.8,4188.7,44.2508]
[1758599744442,0.82978372,4188.8,4188.7,44.2508]
[1758599744847,0.82978372,4188.8,4188.7,45.58007571]
[1758599750445,0.5929,4188.8,4188.7,45.58007571]
[1758599750648,0.83029569,4188.8,4188.7,45.58007571]
[1758599753251,0.83048361,4188.8,4188.7,45.58007571]
[1758599753850,0.83048361,4188.8,4188.7,44.2508]
[1758599759054,0.2449,4189.5,4189.4,0.42925]
[1758599759254,0.2449,4189.5,4189.4,3.88005]
[1758599759750,0.2449,4189.5,4189.4,44.68005]
[1758599761251,0.8689,4189.5,4189.4,44.68005]
[1758599771162,1.10358536,4189.5,4189.4,44.68005]
[1758599774368,0.8618,4190.0,4189.9,0.4292]
[1758599774663,0.8618,4190.0,4189.9,5.20927571]
[1758599775067,1.2638,4190.0,4189.9,5.20927571]
[1758599776468,0.8618,4190.0,4189.9,5.20927571]
[1758599776869,1.2737,4190.0,4189.9,5.20927571]
[1758599777171,1.2737,4190.0,4189.9,46.00927571]
[1758599778572,1.2737,4190.0,4189.9,45.39854692]
[1758599783276,2.82644692,4190.0,4189.9,3.4508]
[1758599783674,6.23224008,4190.0,4189.9,0.243]
[1758599783979,5.6787,4190.0,4189.9,0.243]
[1758599784186,1.6787,4190.0,4189.9,0.243]
[1758599784479,1.6787,4190.0,4189.9,41.043]
[1758599784868,0.8169,4189.4,4189.3,3.2078]
[1758599785069,1.4376,4189.4,4189.3,3.4508]
[1758599785277,1.4376,4189.4,4189.3,44.2508]
[1758599786380,1.66929696,4189.4,4189.3,44.2508]
[1758599786581,2.09854696,4189.4,4189.3,44.2508]
[1758599786977,2.09854696,4189.4,4189.3,44.0078]
[1758599787284,3.24629388,4189.4,4189.3,44.2508]
[1758599787583,1.66929696,4189.4,4189.3,44.2508]
[1758599787782,0.85239696,4189.4,4189.3,44.2508]
[1758599788274,1.28165696,4189.4,4189.3,44.2508]
[1758599788471,0.85239696,4189.4,4189.3,44.2508]
[1758599790275,2.00014388,4189.4,4189.3,44.2508]
[1758599790881,0.85239696,4189.4,4189.3,44.2508]
[1758599796585,0.85239696,4189.4,4189.3,44.0078]
[1758599796780,0.85239696,4189.4,4189.3,44.2508]
[1758599797685,0.85239696,4189.4,4189.3,44.0078]
[1758599797889,2.00014388,4189.4,4189.3,44.2508]
[1758599798393,0.85239696,4189.4,4189.3,44.2508]
[1758599799694,2.00014388,4189.4,4189.3,44.2508]
[1758599805292,0.85239696,4189.4,4189.3,44.2508]
[1758599808587,0.85239696,4189.4,4189.3,45.39854692]
[1758599809896,0.85176206,4189.4,4189.3,45.39854692]
[1758599810091,0.23106206,4189.4,4189.3,45.39854692]
[1758599810689,0.80976206,4189.4,4189.3,45.39854692]
[1758599814400,0.2378,4190.0,4189.9,0.4292]
[1758599814401,0.8165,4190.0,4189.9,0.4292]
[1758599814600,1.60208172,4190.0,4189.9,3.4508]
[1758599815000,2.41547172,4190.0,4189.9,3.4508]
[1758599815204,1.86121238,4190.0,4189.9,3.4508]
[1758599815505,2.41537973,4190.0,4189.9,3.4508]
[1758599815703,2.82777973,4190.0,4189.9,3.4508]
[1758599816005,2.82777973,4190.0,4189.9,0.243]
[1758599818403,1.81988973,4190.0,4189.4,3.2078]
[1758599818608,1.6177,4189.5,4189.4,3.2078]
[1758599818899,2.17186947,4189.5,4189.4,3.2078]
[1758599820206,3.31961639,4189.5,4189.4,3.2078]
[1758599820401,1.01856,4189.4,4189.3,41.043]
[1758599820602,1.57268911,4189.4,4189.3,41.043]
[1758599821407,0.5893,4189.4,4189.3,41.043]
[1758599821912,0.5893,4189.4,4189.3,42.19074692]
[1758599822405,0.5893,4189.4,4189.3,41.043]
[1758599826315,1.95056509,4189.4,4189.3,0.243]
[1758599826507,2.17874039,4189.4,4189.3,0.243]
[1758599827712,9.38654039,4189.4,4189.3,0.243]
[1758599828420,5.38654039,4189.4,4189.3,0.243]
[1758599829114,9.38654039,4189.4,4189.3,0.243]
[1758599829502,5.38654039,4189.4,4189.3,0.243]
[1758599829906,2.17874039,4189.4,4189.3,0.243]
[1758599830716,1.3965,4188.9,4188.8,40.8]
[1758599830907,1.6246753,4188.9,4188.8,41.043]
[1758599833711,1.2164753,4188.9,4188.8,41.043]
[1758599833911,0.8174753,4188.9,4188.8,41.043]
[1758599836516,0.7547,4188.3,4188.2,3.2078]
[1758599836719,2.73712222,4188.3,4188.2,3.2078]
[1758599836915,2.73712222,4188.3,4187.8,0.243]
[1758599836916,0.7547,4187.9,4187.8,0.243]
[1758599837119,2.73712222,4187.9,4187.8,0.243]
[1758599837521,3.29034827,4187.9,4187.8,0.243]
[1758599837820,1.3612,4187.2,4187.1,3.21616]
[1758599838015,2.73626162,4187.2,4187.1,3.45916]
[1758599838212,2.73626162,4187.2,4187.1,44.25916]
[1758599838909,0.2273147,4187.2,4187.1,49.40690692]
[1758599839113,0.22701674,4187.2,4187.1,49.83639692]
[1758599839321,0.83351674,4187.2,4187.1,49.83639692]
[1758599839713,0.22701674,4187.2,4187.1,49.83639692]
[1758599840518,0.2291,4187.5,4187.4,0.42946]
[1758599840723,0.2291,4187.5,4187.4,2.00186626]
[1758599840912,0.8356,4187.5,4187.4,2.00186626]
[1758599842114,0.8356,4187.5,4187.4,0.67246]
[1758599844520,0.35741,4187.5,4187.4,0.67246]
[1758599844725,0.5975,4188.0,4187.9,0.42941]
[1758599844920,0.2291,4188.0,4187.9,3.88021]
[1758599845224,0.5975,4188.5,4188.4,0.42936]
[1758599845428,0.5975,4188.5,4188.4,0.67236]
[1758599845716,0.5975,4188.5,4188.4,41.47236]
[1758599845921,0.2291,4188.5,4188.4,44.68016]
[1758599846122,0.5943,4189.0,4188.9,0.42931]
[1758599846326,0.9806,4189.0,4188.9,0.67231]
[1758599846719,1.5871,4189.0,4188.9,0.243]
[1758599849824,1.5903,4188.5,4188.4,44.2508]
[1758599850025,1.5903,4188.5,4188.4,3.4508]
[1758599850428,1.5903,4188.5,4188.4,44.2508]
[1758599850923,1.5903,4188.5,4188.4,41.043]
[1758599851323,2.91970626,4188.5,4188.4,40.8]
[1758599852728,3.1437059,4188.5,4188.4,40.8]
[1758599853022,1.3441,4188.3,4188.2,0.243]
[1758599853218,1.56809964,4188.3,4188.2,0.243]
[1758599853417,1.56809964,4188.3,4188.2,41.043]
[1758599853926,1.56809964,4188.3,4188.2,0.243]
[1758599854224,0.9936,4188.0,4187.9,3.2078]
[1758599854424,3.1376059,4188.0,4187.9,3.2078]
[1758599854729,1.80819964,4188.0,4187.9,3.2078]
[1758599857925,1.80819964,4188.0,4187.9,3.4508]
[1758599860124,2.36773111,4188.0,4187.9,3.4508]
[1758599860328,6.36773111,4188.0,4187.9,0.243]
[1758599860528,1.77353,4187.7,4187.6,0.243]
[1758599860728,3.88646737,4187.7,4187.6,0.243]
[1758599860925,0.42947,4187.3,4187.2,40.8]
[1758599861124,1.24406964,4187.3,4187.2,41.043]
[1758599861932,0.81459964,4187.3,4187.2,41.043]
[1758599863531,0.22399964,4187.3,4187.2,41.47248]
[1758599863733,0.22399964,4187.3,4187.2,45.47248]
[1758599863941,0.81459964,4187.3,4187.2,41.043]
[1758599865639,0.22399964,4187.3,4187.2,41.043]
[1758599867235,0.42942,4187.9,4187.2,42.37240626]
[1758599867434,1.3441,4187.8,4187.7,3.2078]
[1758599867636,2.67350626,4187.8,4187.7,0.243]
[1758599868136,3.23333727,4187.8,4187.7,0.243]
[1758599869034,2.67350626,4187.8,4187.7,0.243]
[1758599870938,0.3825,4187.3,4187.2,44.0078]
[1758599871141,0.9731,4187.3,4187.2,44.2508]
[1758599871442,0.5906,4187.3,4187.2,44.2508]
[1758599879145,0.82084278,4187.3,4187.2,44.2508]
[1758599880742,1.25031278,4187.3,4187.2,44.2508]
[1758599884445,0.82084278,4187.3,4187.2,44.2508]
[1758599889752,0.82118339,4187.3,4187.2,44.2508]
[1758599892754,0.23058339,4187.3,4187.2,44.2508]
[1758599893354,0.80998339,4187.3,4187.2,44.2508]
[1758599895449,0.23058339,4187.3,4187.2,49.81902625]
[1758599895648,0.23058339,4187.3,4187.2,48.48961999]
[1758599895954,0.23058339,4187.3,4187.2,48.2508]
[1758599896948,0.23058339,4187.3,4187.2,49.58020626]
[1758599897455,0.772,4188.5,4187.7,1.07357]
[1758599897642,0.772,4188.5,4188.4,3.2078]
[1758599897841,0.772,4188.5,4188.4,3.4498]
[1758599898056,0.772,4188.5,4188.4,44.2498]
[1758599902558,0.772,4188.5,4188.4,45.39829799]
[1758599903557,0.772,4188.5,4188.4,45.15629799]
[1758599903855,2.67109799,4188.5,4188.4,3.2078]
[1758599904047,6.67109799,4188.5,4188.4,3.2078]
[1758599909370,6.88688849,4188.5,4188.4,3.2078]
[1758599910462,6.88689826,4188.5,4188.4,3.2078]
[1758599910864,2.88689826,4188.5,4188.4,3.2078]
[1758599911069,2.88689826,4188.5,4188.4,3.4498]
[1758599916770,2.88689826,4188.5,4188.4,0.242]
[1758599916966,0.3661,4187.6,4187.5,3.63725]
[1758599917165,1.13220027,4187.6,4187.5,3.87925]
[1758599918874,1.13234155,4187.6,4187.5,3.87925]
[1758599919373,2.66853954,4187.6,4187.5,3.87925]
[1758599927185,2.66728953,4187.6,4187.5,3.87925]
[1758599928486,2.66728953,4187.6,4187.5,3.86930505]
[1758599933786,2.66728953,4187.6,4187.2,40.8]
[1758599933991,1.69879799,4187.3,4187.2,40.8]
[1758599934292,1.536,4187.0,4186.9,3.63731]
[1758599934486,1.75069154,4187.0,4186.9,3.87931]
[1758599934688,0.99689154,4187.0,4186.9,3.87931]
[1758599934887,0.99689154,4187.0,4186.9,5.02780799]
[1758599935986,0.99689154,4187.0,4186.9,45.82780799]
[1758599936389,0.5503,4187.3,4187.2,0.42948]
[1758599936698,0.7822,4187.5,4187.4,0.42946]
[1758599936991,0.7822,4187.5,4187.4,3.87926]
[1758599937191,0.7822,4187.5,4187.4,44.67926]
[1758599938384,1.93069799,4187.5,4187.4,44.2498]
[1758599940185,0.7822,4187.5,4187.4,44.2498]
[1758599942299,0.7822,4187.5,4187.4,45.39829799]
[1758599943195,0.7822,4187.5,4187.4,44.2498]
[1758599948493,1.01312413,4187.5,4187.4,44.2498]
[1758599949894,1.00242413,4187.5,4187.4,44.2498]
[1758599950200,0.5396,4187.8,4187.7,0.42943]
[1758599950399,0.5396,4187.8,4187.7,1.81992799]
[1758599956200,0.5665,4188.4,4188.0,1.07349]
[1758599956398,0.5665,4188.4,4188.3,4.78566799]
[1758599956599,0.5665,4188.4,4188.3,5.02766799]
[1758599956994,0.5665,4188.4,4188.3,45.82766799]
[1758599959205,0.5665,4188.4,4188.3,44.67917]
[1758599959496,0.5665,4188.4,4188.3,45.82766799]
[1758599962006,0.79774405,4188.4,4188.3,45.82766799]
[1758599962703,0.23124405,4188.4,4188.3,46.00790299]
[1758599962910,0.5665,4188.7,4188.6,0.42934]
[1758599963113,0.5665,4188.7,4188.6,2.00007299]
[1758599963607,0.5665,4188.7,4188.6,42.80007299]
[1758599964805,0.2319,4189.0,4188.9,0.42931]
[1758599965005,0.2319,4189.0,4188.9,5.20784299]
[1758599965405,0.7984,4189.0,4188.9,5.20784299]
[1758599971314,1.1678,4189.0,4188.9,5.20784299]
[1758599971517,1.5232,4189.0,4188.9,5.20784299]
[1758599972609,1.5232,4189.0,4188.9,3.2078]
[1758599972811,5.5232,4189.0,4188.9,3.4498]
[1758599973619,1.5232,4189.0,4188.9,3.4498]
[1758599974014,1.5232,4189.0,4188.9,4.77853299]
[1758599975020,1.75109329,4189.0,4188.9,4.77853299]
[1758599975417,1.39569329,4189.0,4188.9,4.77853299]
[1758599976221,1.75109329,4189.0,4188.9,4.77853299]
[1758599977212,1.75109329,4189.0,4188.9,3.4498]
[1758599982227,1.75109329,4189.0,4188.9,4.77853299]
[1758599983018,1.39569329,4189.0,4188.9,4.77853299]
[1758599983622,1.02629329,4189.0,4188.9,4.77853299]
[1758599995533,1.40959329,4189.0,4188.9,4.77853299]
[1758599995735,1.76499329,4189.0,4188.9,4.77853299]
[1758599998035,1.02629329,4189.0,4188.9,4.77853299]
[1758599999740,1.40959329,4189.0,4188.9,4.77853299]
[1758600001339,1.02629329,4189.0,4188.9,4.77853299]
[1758600002748,0.212,4189.5,4189.4,0.7232]
[1758600003058,0.212,4189.5,4189.4,6.27319299]
[1758600003255,0.9855,4190.0,4189.9,1.1524]
[1758600003557,0.9855,4190.0,4189.9,5.93093299]
[1758600003950,0.9855,4190.0,4189.9,46.73093299]
[1758600004150,0.6087,4190.0,4189.9,47.07313299]
[1758600004348,0.6087,4190.0,4189.9,46.73093299]
[1758600004548,0.6087,4190.0,4189.9,46.30173299]
[1758600004749,1.1335,4190.0,4189.9,46.30173299]
[1758600006054,0.5248,4190.0,4189.9,46.64393299]
[1758600006359,0.9026,4190.4,4190.3,1.15236]
[1758600006552,0.9026,4190.4,4190.3,3.06529299]
[1758600007146,0.5248,4190.4,4190.3,3.06529299]
[1758600008857,0.5248,4190.4,4190.3,43.86529299]
[1758600010648,0.2249,4191.0,4190.3,43.43613299]
[1758600010854,1.1275,4191.0,4190.9,5.60193299]
[1758600011059,1.5043,4191.0,4190.9,4.173]
[1758600011253,1.5043,4191.0,4190.9,5.50173299]
[1758600013260,1.5043,4191.0,4190.9,3.8079]
[1758600013556,0.5248,4190.4,4190.3,44.43696]
[1758600013755,0.5248,4190.4,4190.3,44.2498]
[1758600014663,0.70531563,4190.4,4190.3,44.2498]
[1758600015066,0.70531563,4190.4,4190.3,44.592]
[1758600015660,0.2249,4191.0,4190.9,0.3581]
[1758600015866,1.68150648,4191.0,4190.9,0.242]
[1758600016059,1.68150648,4191.0,4190.9,3.4498]
[1758600016259,1.68150648,4191.0,4190.9,4.2027]
[1758600016869,1.68150648,4191.0,4190.9,4.5439]
[1758600019269,1.68150648,4191.0,4190.9,4.2027]
[1758600019864,1.501,4191.0,4190.9,4.2027]
[1758600020063,1.1366,4191.0,4190.9,4.5439]
[1758600021269,0.7743,4191.0,4190.9,4.5439]
[1758600021770,0.5494,4191.0,4190.9,4.5439]
[1758600022369,0.5494,4191.0,4190.9,45.3439]
[1758600022564,0.5494,4191.4,4190.9,45.66376]
[1758600022867,0.9117,4191.4,4191.3,2.85189299]
[1758600023161,0.9117,4191.4,4191.3,3.09389299]
[1758600023560,0.9117,4191.4,4191.3,43.89389299]
[1758600024569,0.9117,4191.4,4191.3,43.71206037]
[1758600026867,0.2249,4192.5,4191.9,1.0941]
[1758600027171,0.5872,4192.5,4192.4,5.53655037]
[1758600027369,0.76743659,4192.5,4192.4,5.77855037]
[1758600027671,1.31683659,4192.5,4192.4,5.77855037]
[1758600027872,1.31683659,4192.5,4192.4,46.57855037]
[1758600030064,1.31683659,4192.5,4192.4,45.0027]
[1758600033369,1.31683659,4192.5,4192.4,46.14960037]
[1758600037871,1.31683659,4192.5,4192.4,46.48140037]
[1758600038974,1.67783659,4192.5,4191.9,3.2078]
[1758600039177,1.451,4192.0,4191.9,3.2078]
[1758600039375,1.63123659,4192.0,4191.9,3.4498]
[1758600039579,1.63123659,4192.0,4191.9,3.8156]
[1758600042475,1.27023659,4192.0,4191.9,4.1796]
[1758600042683,1.63123659,4192.0,4191.9,5.32650037]
[1758600043682,1.63123659,4192.0,4191.9,4.1796]
[1758600045082,1.66346601,4192.0,4191.9,4.1796]
[1758600045485,1.66346601,4192.0,4191.9,3.9376]
[1758600045676,1.66346601,4192.0,4191.9,4.1796]
[1758600047879,1.66346601,4192.0,4191.9,3.2078]
[1758600048087,1.16924,4191.5,4191.4,40.8]
[1758600048278,1.38170601,4191.5,4191.4,41.042]
[1758600048978,1.38170601,4191.5,4191.4,41.3738]
[1758600049484,1.38170601,4191.5,4191.4,42.52070037]
[1758600050088,1.16980601,4191.5,4191.4,42.52070037]
[1758600052984,0.64150601,4191.5,4191.4,42.52070037]
[1758600053392,1.16980601,4191.5,4191.4,42.52070037]
[1758600053690,1.38170601,4191.5,4191.4,42.27870037]
[1758600053891,1.38170601,4191.5,4191.4,42.18890037]
[1758600056393,1.38170601,4191.5,4191.4,41.94690037]
[1758600056595,1.38170601,4191.5,4191.4,42.18890037]
[1758600057993,1.38170601,4191.5,4191.4,42.52070037]
[1758600058494,1.16980601,4191.5,4191.4,42.52070037]
[1758600059797,1.38170601,4191.5,4191.4,42.52070037]
[1758600060593,0.77562,4190.7,4190.6,3.9201]
[1758600060797,1.50698601,4190.7,4190.6,4.5007]
[1758600061093,1.50698601,4190.7,4190.6,45.3007]
[1758600062689,1.86748601,4190.7,4190.6,0.3599]
[1758600062891,1.86748601,4190.7,4190.6,0.241]
[1758600063092,1.86748601,4190.7,4190.6,0.9533]
[1758600063295,1.86748601,4190.7,4190.6,1.2929]
[1758600064200,0.21246601,4190.7,4190.6,1.2929]
[1758600064390,0.42907,4191.3,4190.9,1.481]
[1758600064586,0.42907,4191.3,4190.6,7.68742999]
[1758600064587,0.23130973,4191.2,4191.1,1.0519]
[1758600064795,0.23130973,4191.2,4191.1,1.2929]
[1758600066094,0.42899,4192.0,4191.9,1.0519]
[1758600066291,1.16589,4192.0,4191.9,2.43980037]
[1758600066498,1.51239,4192.0,4191.9,2.43980037]
[1758600067191,1.51239,4192.0,4191.9,1.2929]
[1758600067590,1.51239,4192.0,4191.9,2.43980037]
[1758600068701,0.5189,4192.0,4191.9,2.43980037]
[1758600069396,0.5189,4192.0,4191.9,43.23980037]
[1758600071999,0.7369,4192.0,4191.9,41.7533]
[1758600073102,1.0834,4192.0,4191.9,0.9533]
[1758600073297,1.0834,4192.0,4191.9,1.2929]
[1758600073496,1.0834,4192.0,4191.9,42.0929]
[1758600073895,1.0834,4192.0,4191.9,43.23980037]
[1758600074099,0.5189,4192.0,4191.9,43.23980037]
[1758600075204,0.7369,4192.0,4191.9,42.90020037]
[1758600075697,0.7369,4192.0,4191.9,43.23980037]
[1758600077500,0.5189,4192.0,4191.9,43.23980037]
[1758600077800,0.42893,4192.6,4192.4,0.3315]
[1758600078002,0.42893,4192.6,4192.5,2.42200037]
[1758600078210,1.18752404,4192.6,4192.5,2.42200037]
[1758600078701,0.75859404,4192.6,4192.5,2.42200037]
[1758600079096,1.45919404,4192.6,4192.5,0.9436]
[1758600079296,1.2208,4192.4,4192.3,3.5706]
[1758600079599,0.23839404,4192.4,4192.3,4.4829]
[1758600079796,0.23839404,4192.4,4192.3,4.91186]
[1758600079994,0.23839404,4192.4,4192.3,4.4829]
[1758600080200,0.75859404,4192.4,4192.3,1.2751]
[1758600081297,1.10229404,4192.4,4192.3,0.9436]
[1758600081497,0.8639,4192.2,4192.1,0.7026]
[1758600081700,1.10229404,4192.2,4192.1,1.2751]
[1758600081900,1.45919404,4192.2,4192.1,0.9436]
[1758600082803,1.10229404,4192.2,4192.1,0.9436]
[1758600083102,0.75859404,4192.2,4192.1,1.2751]
[1758600083607,0.23839404,4192.2,4192.1,1.2751]
[1758600086608,0.23839404,4192.2,4192.1,2.60178146]
[1758600089312,0.23801443,4192.2,4192.1,1.89918146]
[1758600089497,0.23801443,4192.2,4192.1,3.03076146]
[1758600089900,1.2928,4192.9,4192.8,0.7026]
[1758600090110,1.6497,4192.9,4192.8,0.9436]
[1758600090306,1.6497,4192.9,4192.8,0.241]
[1758600090611,1.66115,4192.4,4192.3,0.3628]
[1758600090810,1.66115,4192.4,4192.3,0.6038]
[1758600092609,0.2107,4192.0,4191.9,40.8]
[1758600092806,0.7198,4192.0,4191.9,41.041]
[1758600093007,3.7947,4192.5,4192.4,0.7257]
[1758600093211,4.1416,4192.5,4192.4,0.9667]
[1758600093705,4.6507,4192.5,4192.4,0.9667]
[1758600094106,4.6507,4192.5,4192.4,1.2914]
[1758600094407,1.096,4192.5,4192.4,1.2914]
[1758600095212,1.096,4192.5,4192.4,0.9667]
[1758600095410,1.4429,4192.5,4192.4,0.241]
[1758600095617,4.6507,4192.5,4192.4,0.241]
[1758600096309,1.66118,4192.1,4192.0,0.3546]
[1758600096617,0.7198,4192.0,4191.9,40.8]
[1758600096814,0.7198,4192.0,4191.9,41.041]
[1758600101818,0.95526385,4192.0,4191.9,41.041]
[1758600106520,0.95526385,4192.0,4191.9,41.3657]
[1758600107221,0.95526385,4192.0,4191.9,41.041]
[1758600110122,0.95526385,4192.0,4191.9,41.3657]
[1758600112219,0.23546385,4192.0,4191.9,41.3657]
[1758600114221,0.93804,4192.5,4192.4,0.7257]
[1758600114425,1.17199578,4192.5,4192.4,1.2914]
[1758600114824,1.75889578,4192.5,4192.4,0.9667]
[1758600115127,2.10579578,4192.5,4192.4,0.9667]
[1758600115325,2.10579578,4192.5,4192.4,1.2914]
[1758600116027,1.67685578,4192.5,4192.4,1.2914]
[1758600116329,1.67685578,4192.5,4192.4,0.9667]
[1758600116822,1.67685578,4192.5,4192.4,1.2914]
[1758600117328,1.32995578,4192.5,4192.4,1.72035]
[1758600117528,1.32995578,4192.5,4192.4,1.2914]
[1758600119124,0.74305578,4192.5,4192.4,2.61808146]
[1758600119525,0.23395578,4192.5,4192.4,2.61808146]
[1758600120331,0.23395578,4192.5,4192.4,43.41808146]
[1758600120531,0.73775578,4192.5,4192.4,43.41808146]
[1758600120836,0.95145578,4192.5,4192.4,41.5257]
[1758600121024,1.65445578,4192.5,4192.4,0.5956]
[1758600121423,1.65445578,4192.5,4192.4,0.3546]
[1758600121722,1.65445578,4192.5,4192.4,41.041]
[1758600122526,1.65445578,4192.5,4192.4,0.241]
[1758600122723,0.703,4191.7,4191.6,0.7101]
[1758600122929,0.93695578,4191.7,4191.6,0.9511]
[1758600123127,0.58135578,4191.7,4191.6,42.0572]
[1758600123328,1.08515578,4191.7,4191.6,42.0572]
[1758600123828,0.73775578,4191.7,4191.6,42.0572]
[1758600124028,0.73775578,4191.7,4191.6,41.7511]
[1758600124726,0.73775578,4191.7,4191.6,42.0572]
[1758600125231,0.73775578,4191.7,4191.6,41.7511]
[1758600126126,0.73775578,4191.7,4191.6,41.5101]
[1758600126326,0.73775578,4191.7,4191.6,42.0572]
[1758600126622,0.23395578,4191.7,4191.6,42.0572]
[1758600126829,1.28015,4192.4,4192.3,0.7101]
[1758600127132,2.0631967,4192.4,4192.3,0.9511]
[1758600127827,0.7830467,4192.4,4192.3,1.2572]
[1758600128034,0.23407515,4192.4,4192.3,1.2572]
[1758600128917,0.73787515,4192.4,4192.3,1.2572]
[1758600129123,0.23407515,4192.4,4192.3,1.2572]
[1758600129932,0.23407515,4192.4,4192.3,42.0572]
[1758600131326,3.2078,4192.8,4192.7,0.7101]
[1758600131628,3.2078,4192.8,4192.7,3.01280146]
[1758600132333,0.5038,4192.9,4192.7,43.50670146]
[1758600132529,0.5038,4192.9,4192.8,1.0162]
[1758600133226,3.4258,4193.5,4192.9,0.4289]
[1758600133425,2.18404588,4193.4,4193.3,2.03678146]
[1758600133626,0.2137,4194.0,4193.3,2.27778146]
[1758600133837,0.8512,4193.9,4193.8,1.0162]
[1758600134022,0.8512,4193.9,4193.8,2.27778146]
[1758600134228,1.2068,4193.9,4193.8,43.07778146]
[1758600134629,1.2068,4193.9,4193.8,41.041]
[1758600136037,1.2068,4193.9,4193.8,40.8]
[1758600136237,1.2068,4193.9,4193.8,41.041]
[1758600143425,1.42463247,4193.9,4193.8,41.041]
[1758600144341,1.42463247,4193.9,4193.8,41.3399]
[1758600144827,1.42463247,4193.9,4193.8,41.041]
[1758600145231,1.06903247,4193.9,4193.8,41.3399]
[1758600145433,0.72163247,4193.9,4193.8,41.3399]
[1758600146636,0.72163247,4193.9,4193.8,42.48557162]
[1758600148251,0.72163247,4193.9,4193.8,41.3399]
[1758600148458,0.72163247,4193.9,4193.8,42.48557162]
[1758600152151,0.72163247,4193.9,4193.8,42.18667162]
[1758600152848,0.72163247,4193.9,4193.8,41.94567162]
[1758600153047,0.72163247,4193.9,4193.8,42.18667162]
[1758600154254,0.72163247,4193.9,4193.8,40.8]
[1758600154457,1.2335,4193.3,4193.2,0.3306]
[1758600154657,4.65913247,4193.3,4193.2,0.3306]
[1758600154857,4.65913247,4193.3,4193.2,0.241]
[1758600155362,4.65913247,4193.3,4193.2,0.9029]
[1758600155961,4.65913247,4193.3,4193.2,1.1927]
[1758600156856,4.65913247,4193.3,4193.2,0.9029]
[1758600157660,1.45133247,4193.3,4193.2,0.9029]
[1758600158562,0.21783247,4193.3,4193.2,1.62157]
[1758600158768,0.5414,4194.3,4193.6,0.2898]
[1758600158960,0.5414,4194.7,4194.4,0.6619]
[1758600159156,0.897,4194.7,4194.6,2.09737162]
[1758600159465,0.897,4194.7,4194.6,1.80757162]
[1758600160264,0.897,4194.7,4194.6,2.09737162]
[1758600161951,0.897,4194.7,4194.6,1.80757162]
[1758600162373,0.897,4194.7,4194.6,2.09737162]
[1758600162557,0.5414,4194.7,4194.6,2.09737162]
[1758600163667,4.4413,4195.4,4195.3,0.3306]
[1758600163862,4.4413,4195.4,4195.3,2.04857162]
[1758600164761,4.86994,4195.4,4195.3,2.04857162]
[1758600164962,4.4413,4195.4,4195.3,2.04857162]
[1758600166963,1.2335,4195.4,4195.3,2.04857162]
[1758600167554,1.2335,4195.4,4195.3,0.241]
[1758600170468,0.897,4195.4,4195.3,2.04857162]
[1758600170665,1.44905328,4195.4,4195.3,1.38667162]
[1758600170872,1.44905328,4195.4,4195.3,0.241]
[1758600171064,0.42865,4195.3,4194.8,1.57437162]
[1758600171258,0.2128,4195.5,4194.7,3.2078]
[1758600171259,1.2335,4194.8,4194.7,3.2078]
[1758600171465,1.44905328,4194.8,4194.7,3.4488]
[1758600172270,1.44905328,4194.8,4194.7,0.241]
[1758600173560,1.44910409,4194.8,4194.7,1.71727162]
[1758600173759,1.11260409,4194.8,4194.7,2.33837162]
[1758600173959,0.75700409,4194.8,4194.7,2.33837162]
[1758600174164,0.75700409,4194.8,4194.7,5.54617162]
[1758600174562,0.21560409,4194.8,4194.7,5.54617162]
[1758600175864,0.75700409,4194.8,4194.7,5.54617162]
[1758600176063,1.11260409,4194.8,4194.7,5.54617162]
[1758600177872,1.11256999,4194.8,4194.7,5.54617162]
[1758600178069,1.44906999,4194.8,4194.7,0.241]
[1758600179075,1.44906999,4194.8,4194.7,0.9029]
[1758600182565,1.44906999,4194.8,4194.7,1.00032]
[1758600183977,1.11256999,4194.8,4194.7,1.61732]
[1758600184583,1.46676999,4194.8,4194.7,2.48939162]
[1758600184967,1.46676999,4194.8,4194.7,1.38667162]
[1758600187777,0.6991,4193.9,4193.8,0.4288]
[1758600187975,1.42636999,4193.9,4193.8,2.49567162]
[1758600188173,1.42636999,4193.9,4193.8,43.56927162]
[1758600188174,0.21556999,4193.9,4193.8,43.56927162]
[1758600188674,0.72726999,4193.9,4193.8,43.56927162]
[1758600188978,0.21556999,4193.9,4193.8,43.56927162]
[1758600190269,0.5117,4194.3,4194.2,0.6802]
[1758600190475,0.21639826,4194.3,4194.2,5.54827162]
[1758600191081,0.21639826,4194.3,4194.2,46.34827162]
[1758600194188,0.72809826,4194.3,4194.2,46.34827162]
[1758600194390,0.72793819,4194.3,4194.2,46.07467162]
[1758600194584,0.72793819,4194.3,4194.2,44.929]
[1758600194887,0.72793819,4194.3,4194.2,46.07467162]
[1758600196386,0.72793819,4194.3,4194.2,4.93127162]
[1758600196588,0.72793819,4194.3,4193.2,1.07216]
[1758600196589,1.1862,4193.7,4193.6,5.47550162]
[1758600196886,1.40243819,4193.7,4193.6,46.51650162]
[1758600199281,1.40243819,4193.7,4193.6,46.78120162]
[1758600199787,1.05223819,4193.7,4193.6,46.78120162]